[Event "Early-Titled-Tuesday-Blitz-January-30-2024"]
[Site "Chess.com"]
[Date "2024.01.30"]
[Round "4"]
[White "Me_ch_an"]
[Black "TokChess"]
[Result "1-0"]
[WhiteElo "2331"]
[BlackElo "2518"]
[TimeControl "180+1"]
[EndTime "8:41:34 PST"]
[Termination "Me_ch_an won by resignation"]

1. e4 {[%clk 0:02:57.3]} 1... c6 {[%clk 0:02:59.2]} 2. d4 {[%clk 0:02:57]} 2...
d5 {[%clk 0:02:58.2]} 3. Nd2 {[%clk 0:02:57.7]} 3... Nd7 {[%clk 0:02:56.3]} 4.
Ngf3 {[%clk 0:02:53.6]} 4... dxe4 {[%clk 0:02:52.5]} 5. Nxe4 {[%clk 0:02:53.5]}
5... Ngf6 {[%clk 0:02:52.8]} 6. Nxf6+ {[%clk 0:02:38.6]} 6... Nxf6 {[%clk
0:02:52.6]} 7. Bc4 {[%clk 0:02:37.8]} 7... Bf5 {[%clk 0:02:47.6]} 8. Ne5 {[%clk
0:02:32.9]} 8... e6 {[%clk 0:02:43.5]} 9. O-O {[%clk 0:02:33]} 9... Be7 {[%clk
0:02:40.3]} 10. h3 {[%clk 0:02:31.2]} 10... O-O {[%clk 0:02:38.5]} 11. f4 {[%clk
0:02:09.8]} 11... Be4 {[%clk 0:02:35.5]} 12. Be3 {[%clk 0:02:05]} 12... Qc7
{[%clk 0:02:29.5]} 13. Qe2 {[%clk 0:01:52.6]} 13... Rad8 {[%clk 0:02:24.7]} 14.
Rad1 {[%clk 0:01:51.9]} 14... c5 {[%clk 0:02:15.7]} 15. dxc5 {[%clk 0:01:38.1]}
15... Bxc5 {[%clk 0:02:14.9]} 16. Bd3 {[%clk 0:01:25.2]} 16... Bxd3 {[%clk
0:02:09.5]} 17. Rxd3 {[%clk 0:01:24.5]} 17... Bxe3+ {[%clk 0:02:07.5]} 18. Rxe3
{[%clk 0:01:19.7]} 18... Nd5 {[%clk 0:01:52.3]} 19. Rg3 {[%clk 0:01:14.9]} 19...
f6 {[%clk 0:01:43.5]} 20. Nd3 {[%clk 0:01:11.2]} 20... Rfe8 {[%clk 0:01:41.3]}
21. Kh1 {[%clk 0:01:00.6]} 21... Rc8 {[%clk 0:01:26.2]} 22. c3 {[%clk
0:00:55.7]} 22... Rcd8 {[%clk 0:01:19.3]} 23. Qf3 {[%clk 0:00:42.5]} 23... Nb6
{[%clk 0:01:14.2]} 24. Re1 {[%clk 0:00:35.9]} 24... Nc4 {[%clk 0:01:09.8]} 25.
Qf2 {[%clk 0:00:17.5]} 25... b6 {[%clk 0:00:51.6]} 26. b3 {[%clk 0:00:17.6]}
26... Nd6 {[%clk 0:00:48.9]} 27. c4 {[%clk 0:00:17.8]} 27... Nf5 {[%clk
0:00:47.4]} 28. Rf3 {[%clk 0:00:16.7]} 28... Rd7 {[%clk 0:00:42.8]} 29. g4
{[%clk 0:00:16.4]} 29... Nd4 {[%clk 0:00:42.5]} 30. Rfe3 {[%clk 0:00:16.4]}
30... Qc6+ {[%clk 0:00:43.1]} 31. Kh2 {[%clk 0:00:14.4]} 31... Red8 {[%clk
0:00:41.7]} 32. Nb4 {[%clk 0:00:13.6]} 32... Qb7 {[%clk 0:00:37.5]} 33. Kg3
{[%clk 0:00:05.1]} 33... a5 {[%clk 0:00:36.6]} 34. Nc2 {[%clk 0:00:04.3]} 34...
Nxc2 {[%clk 0:00:34]} 35. Qxc2 {[%clk 0:00:05.2]} 35... Rd2 {[%clk 0:00:34.2]}
36. Qe4 {[%clk 0:00:05.3]} 36... Qxe4 {[%clk 0:00:25.4]} 37. Rxe4 {[%clk
0:00:06.2]} 37... Rxa2 {[%clk 0:00:08.1]} 38. Rxe6 {[%clk 0:00:06.1]} 38... Ra3
{[%clk 0:00:02.6]} 39. R1e3 {[%clk 0:00:05]} 39... a4 {[%clk 0:00:02.4]} 40.
bxa4 {[%clk 0:00:04.2]} 40... Rxa4 {[%clk 0:00:03.3]} 41. Rxb6 {[%clk 0:00:04]}
41... Rxc4 {[%clk 0:00:03.6]} 42. Rb7 {[%clk 0:00:04.4]} 42... Rf8 {[%clk
0:00:02.9]} 43. Ree7 {[%clk 0:00:04.3]} 1-0

[Event "Early-Titled-Tuesday-Blitz-January-30-2024"]
[Site "Chess.com"]
[Date "2024.01.30"]
[Round "4"]
[White "scarabee43"]
[Black "lachesisQ"]
[Result "1-0"]
[WhiteElo "2840"]
[BlackElo "3124"]
[TimeControl "180+1"]
[EndTime "8:41:35 PST"]
[Termination "scarabee43 won by resignation"]

1. d4 {[%clk 0:03:00.9]} 1... g6 {[%clk 0:02:59.1]} 2. Nf3 {[%clk 0:02:58.3]}
2... Bg7 {[%clk 0:02:59.8]} 3. c4 {[%clk 0:02:58.7]} 3... Nf6 {[%clk 0:02:59.1]}
4. Nc3 {[%clk 0:02:58.7]} 4... d5 {[%clk 0:02:59.5]} 5. Bg5 {[%clk 0:02:51.3]}
5... dxc4 {[%clk 0:02:59.7]} 6. e3 {[%clk 0:02:50.8]} 6... Be6 {[%clk
0:02:59.4]} 7. Nd2 {[%clk 0:02:43.2]} 7... Nd5 {[%clk 0:02:59.3]} 8. Bxc4 {[%clk
0:02:42]} 8... Nxc3 {[%clk 0:02:59.4]} 9. bxc3 {[%clk 0:02:29.9]} 9... Bxc4
{[%clk 0:02:59.5]} 10. Nxc4 {[%clk 0:02:30.5]} 10... Qd5 {[%clk 0:02:59.7]} 11.
Qb3 {[%clk 0:02:19.1]} 11... Nd7 {[%clk 0:02:39]} 12. Bh4 {[%clk 0:02:02.4]}
12... Qxg2 {[%clk 0:02:38.3]} 13. O-O-O {[%clk 0:02:01.8]} 13... Qc6 {[%clk
0:02:34.6]} 14. Na5 {[%clk 0:01:54.1]} 14... Qb6 {[%clk 0:02:32.2]} 15. Qa3
{[%clk 0:01:42.3]} 15... Bf6 {[%clk 0:02:26.9]} 16. Bxf6 {[%clk 0:01:40.5]}
16... Nxf6 {[%clk 0:02:27.8]} 17. Rd2 {[%clk 0:01:39]} 17... Qa6 {[%clk
0:02:27]} 18. Qa4+ {[%clk 0:01:35.8]} 18... Kf8 {[%clk 0:02:26.1]} 19. Rb2
{[%clk 0:01:24.6]} 19... b6 {[%clk 0:02:13.7]} 20. Qc6 {[%clk 0:01:24.6]} 20...
Kg7 {[%clk 0:02:12.6]} 21. Nc4 {[%clk 0:01:20.5]} 21... Rhd8 {[%clk 0:02:10.2]}
22. Ne5 {[%clk 0:01:17.2]} 22... Rac8 {[%clk 0:02:07.1]} 23. h4 {[%clk
0:01:14.3]} 23... h5 {[%clk 0:02:05.1]} 24. Rg1 {[%clk 0:01:10]} 24... Rd6
{[%clk 0:02:04.9]} 25. Qg2 {[%clk 0:01:07.1]} 25... Nd7 {[%clk 0:02:02.2]} 26.
Qg5 {[%clk 0:01:02.3]} 26... Qa5 {[%clk 0:01:49.9]} 27. Qxe7 {[%clk 0:00:48.7]}
27... Qxc3+ {[%clk 0:01:32.6]} 28. Rc2 {[%clk 0:00:30.3]} 28... Qa3+ {[%clk
0:01:19.2]} 29. Kb1 {[%clk 0:00:29.5]} 29... Nxe5 {[%clk 0:01:19.2]} 30. Qxe5+
{[%clk 0:00:25.8]} 30... Kh7 {[%clk 0:01:18.9]} 31. Qf4 {[%clk 0:00:19.9]} 31...
Rf8 {[%clk 0:01:16.5]} 32. Rxc7 {[%clk 0:00:19.2]} 32... Qb4+ {[%clk 0:01:14.5]}
33. Ka1 {[%clk 0:00:19.1]} 33... Re6 {[%clk 0:00:18.5]} 34. Rgc1 {[%clk
0:00:15.9]} 34... Kg8 {[%clk 0:00:16.9]} 35. Rxa7 {[%clk 0:00:14.5]} 35... Qd2
{[%clk 0:00:16.6]} 36. Rac7 {[%clk 0:00:14.3]} 36... b5 {[%clk 0:00:15.1]} 37.
R7c2 {[%clk 0:00:13.7]} 37... Qa5 {[%clk 0:00:15.4]} 38. d5 {[%clk 0:00:13.3]}
38... Ra6 {[%clk 0:00:15.2]} 39. d6 {[%clk 0:00:12.5]} 39... Rfa8 {[%clk
0:00:14.7]} 40. Qd4 {[%clk 0:00:08.7]} 40... Qd8 {[%clk 0:00:12.9]} 41. d7
{[%clk 0:00:08.3]} 41... Kh7 {[%clk 0:00:13.3]} 42. Kb1 {[%clk 0:00:07.7]} 42...
Qf6 {[%clk 0:00:07.2]} 43. Qxf6 {[%clk 0:00:06.9]} 43... Rxf6 {[%clk 0:00:07.5]}
44. Rc8 {[%clk 0:00:07.5]} 44... Rd6 {[%clk 0:00:06.7]} 45. Rxa8 {[%clk
0:00:07.5]} 45... Rxd7 {[%clk 0:00:07.6]} 46. Rb8 {[%clk 0:00:07.8]} 46... Rd5
{[%clk 0:00:06.7]} 47. Rc7 {[%clk 0:00:07.7]} 47... Rf5 {[%clk 0:00:07]} 48. f4
{[%clk 0:00:07.2]} 48... Kg7 {[%clk 0:00:07.2]} 49. Kc2 {[%clk 0:00:07.7]} 49...
Rd5 {[%clk 0:00:07.5]} 50. Rbb7 {[%clk 0:00:07.6]} 50... Kf6 {[%clk 0:00:07.4]}
51. Rxf7+ {[%clk 0:00:07.4]} 51... Ke6 {[%clk 0:00:08]} 52. Rbe7+ {[%clk
0:00:07.4]} 1-0

[Event "Early-Titled-Tuesday-Blitz-January-30-2024"]
[Site "Chess.com"]
[Date "2024.01.30"]
[Round "4"]
[White "NikolaGry"]
[Black "zverr1"]
[Result "0-1"]
[WhiteElo "2722"]
[BlackElo "2558"]
[TimeControl "180+1"]
[EndTime "8:41:36 PST"]
[Termination "zverr1 won on time"]

1. d4 {[%clk 0:03:00.9]} 1... g6 {[%clk 0:02:59.1]} 2. Bf4 {[%clk 0:02:55.3]}
2... Bg7 {[%clk 0:02:58]} 3. c3 {[%clk 0:02:55.6]} 3... Nf6 {[%clk 0:02:55.2]}
4. Nf3 {[%clk 0:02:55.3]} 4... O-O {[%clk 0:02:50.1]} 5. h3 {[%clk 0:02:55.2]}
5... d5 {[%clk 0:02:49.7]} 6. e3 {[%clk 0:02:55.1]} 6... b6 {[%clk 0:02:50.3]}
7. Nbd2 {[%clk 0:02:54.1]} 7... Bb7 {[%clk 0:02:50.2]} 8. Bd3 {[%clk 0:02:51.1]}
8... c5 {[%clk 0:02:48.7]} 9. O-O {[%clk 0:02:50.4]} 9... Nc6 {[%clk 0:02:48]}
10. Re1 {[%clk 0:02:49.9]} 10... Nd7 {[%clk 0:02:45.7]} 11. Bh2 {[%clk
0:02:35.6]} 11... e5 {[%clk 0:02:45.2]} 12. dxe5 {[%clk 0:02:34.9]} 12... Ndxe5
{[%clk 0:02:45.5]} 13. Nxe5 {[%clk 0:02:33.7]} 13... Nxe5 {[%clk 0:02:46.4]} 14.
Bf1 {[%clk 0:02:30.3]} 14... Qe7 {[%clk 0:02:36.8]} 15. Qa4 {[%clk 0:02:16.8]}
15... Rfd8 {[%clk 0:02:30.3]} 16. Rad1 {[%clk 0:02:14.3]} 16... Bc6 {[%clk
0:02:22.9]} 17. Bb5 {[%clk 0:01:56.8]} 17... Qd7 {[%clk 0:02:22.6]} 18. Bxc6
{[%clk 0:01:53.8]} 18... Qxc6 {[%clk 0:02:22.1]} 19. Qxc6 {[%clk 0:01:50.5]}
19... Nxc6 {[%clk 0:02:23]} 20. Nf3 {[%clk 0:01:49.2]} 20... Rd7 {[%clk
0:02:19.5]} 21. Re2 {[%clk 0:01:41.7]} 21... Rad8 {[%clk 0:02:19.3]} 22. Red2
{[%clk 0:01:41.7]} 22... Bf6 {[%clk 0:02:11.7]} 23. Bf4 {[%clk 0:01:40]} 23...
Kg7 {[%clk 0:02:07.3]} 24. Bg5 {[%clk 0:01:37.5]} 24... h6 {[%clk 0:02:04.1]}
25. Bxf6+ {[%clk 0:01:36.7]} 25... Kxf6 {[%clk 0:02:05]} 26. Kf1 {[%clk
0:01:33.8]} 26... Ke6 {[%clk 0:02:05.3]} 27. Ke2 {[%clk 0:01:33.1]} 27... f6
{[%clk 0:01:53.7]} 28. g4 {[%clk 0:01:30.3]} 28... Ne5 {[%clk 0:01:51.7]} 29.
Nh4 {[%clk 0:01:19.2]} 29... Kf7 {[%clk 0:01:44.6]} 30. b3 {[%clk 0:01:16.5]}
30... b5 {[%clk 0:01:33.4]} 31. Ng2 {[%clk 0:01:08.7]} 31... g5 {[%clk
0:01:29.1]} 32. Ne1 {[%clk 0:01:05.9]} 32... Ke6 {[%clk 0:01:22.5]} 33. Nd3
{[%clk 0:01:04.3]} 33... Nxd3 {[%clk 0:01:21.3]} 34. Rxd3 {[%clk 0:01:04.2]}
34... a6 {[%clk 0:01:17.1]} 35. f4 {[%clk 0:00:53.5]} 35... f5 {[%clk
0:01:09.4]} 36. Kf3 {[%clk 0:00:46.7]} 36... gxf4 {[%clk 0:01:05.3]} 37. gxf5+
{[%clk 0:00:27.9]} 37... Kxf5 {[%clk 0:01:04.4]} 38. Rxd5+ {[%clk 0:00:23.4]}
38... Rxd5 {[%clk 0:01:01.9]} 39. Rxd5+ {[%clk 0:00:23]} 39... Rxd5 {[%clk
0:01:00.6]} 40. e4+ {[%clk 0:00:22.3]} 40... Ke5 {[%clk 0:00:59.3]} 41. exd5
{[%clk 0:00:22.5]} 41... Kxd5 {[%clk 0:01:00.2]} 42. Kxf4 {[%clk 0:00:22.6]}
42... b4 {[%clk 0:00:56.8]} 43. cxb4 {[%clk 0:00:08.1]} 43... cxb4 {[%clk
0:00:57.7]} 44. Kg4 {[%clk 0:00:08.4]} 44... Kd4 {[%clk 0:00:50.3]} 45. h4
{[%clk 0:00:07.6]} 45... Kc3 {[%clk 0:00:51.2]} 46. Kh5 {[%clk 0:00:07.9]} 46...
Kb2 {[%clk 0:00:51.5]} 47. Kxh6 {[%clk 0:00:08.3]} 47... Kxa2 {[%clk 0:00:52.1]}
48. Kg5 {[%clk 0:00:08.2]} 48... Kxb3 {[%clk 0:00:52]} 49. h5 {[%clk 0:00:08.5]}
49... Ka2 {[%clk 0:00:48.8]} 50. h6 {[%clk 0:00:08.6]} 50... b3 {[%clk
0:00:49.5]} 51. h7 {[%clk 0:00:08.7]} 51... b2 {[%clk 0:00:50.2]} 52. h8=Q
{[%clk 0:00:08.8]} 52... b1=Q {[%clk 0:00:50.5]} 53. Qh2+ {[%clk 0:00:07.1]}
53... Qb2 {[%clk 0:00:48.8]} 54. Qd6 {[%clk 0:00:06.5]} 54... Qb5+ {[%clk
0:00:42.5]} 55. Kf4 {[%clk 0:00:04]} 55... Qc4+ {[%clk 0:00:37.6]} 56. Ke3
{[%clk 0:00:02.4]} 56... Kb3 {[%clk 0:00:34.2]} 0-1

[Event "Early-Titled-Tuesday-Blitz-January-30-2024"]
[Site "Chess.com"]
[Date "2024.01.30"]
[Round "4"]
[White "Ezov"]
[Black "Predator0608"]
[Result "0-1"]
[WhiteElo "2202"]
[BlackElo "2482"]
[TimeControl "180+1"]
[EndTime "8:41:36 PST"]
[Termination "Predator0608 won on time"]

1. d4 {[%clk 0:02:54.9]} 1... f5 {[%clk 0:02:45.1]} 2. g4 {[%clk 0:02:43.7]}
2... fxg4 {[%clk 0:02:42.4]} 3. h3 {[%clk 0:02:42.7]} 3... gxh3 {[%clk
0:02:40.8]} 4. Bxh3 {[%clk 0:02:43.5]} 4... d6 {[%clk 0:02:38.1]} 5. Nc3 {[%clk
0:02:41.6]} 5... Nf6 {[%clk 0:02:35.3]} 6. Bg5 {[%clk 0:02:39.3]} 6... Bxh3
{[%clk 0:02:27.5]} 7. Nxh3 {[%clk 0:02:37.1]} 7... Qd7 {[%clk 0:02:27.9]} 8. Qd2
{[%clk 0:02:30.5]} 8... Na6 {[%clk 0:02:24.3]} 9. O-O-O {[%clk 0:02:26]} 9...
O-O-O {[%clk 0:02:22.7]} 10. d5 {[%clk 0:02:20.7]} 10... e6 {[%clk 0:02:07.7]}
11. Nf4 {[%clk 0:02:12.2]} 11... exd5 {[%clk 0:02:06.7]} 12. Nfxd5 {[%clk
0:01:59.8]} 12... Nxd5 {[%clk 0:02:02]} 13. Bxd8 {[%clk 0:01:56]} 13... Nxc3
{[%clk 0:02:01.1]} 14. Qxc3 {[%clk 0:01:45.4]} 14... Kxd8 {[%clk 0:01:58.4]} 15.
Qb3 {[%clk 0:01:41.3]} 15... Nc5 {[%clk 0:01:56.2]} 16. Qe3 {[%clk 0:01:38.3]}
16... Qe6 {[%clk 0:01:53.5]} 17. Qg5+ {[%clk 0:01:32.7]} 17... Be7 {[%clk
0:01:39.3]} 18. Qxg7 {[%clk 0:01:28]} 18... Rg8 {[%clk 0:01:38.7]} 19. Qxh7
{[%clk 0:01:22.6]} 19... Qxa2 {[%clk 0:01:37.7]} 20. b3 {[%clk 0:01:09.5]} 20...
Rf8 {[%clk 0:01:27.3]} 21. Qg7 {[%clk 0:00:55.8]} 21... Ne4 {[%clk 0:00:56.1]}
22. Rh7 {[%clk 0:00:46.5]} 22... Re8 {[%clk 0:00:52.8]} 23. f3 {[%clk
0:00:38.4]} 23... Nf6 {[%clk 0:00:50.3]} 24. Rh6 {[%clk 0:00:32.7]} 24... Qa1+
{[%clk 0:00:44.1]} 25. Kd2 {[%clk 0:00:29.2]} 25... Qa5+ {[%clk 0:00:45]} 26.
Kc1 {[%clk 0:00:24.8]} 26... Nd7 {[%clk 0:00:36.7]} 27. Rh8 {[%clk 0:00:18.2]}
27... Qa3+ {[%clk 0:00:23.4]} 28. Kb1 {[%clk 0:00:15.7]} 28... Bf6 {[%clk
0:00:22.2]} 29. Rxe8+ {[%clk 0:00:13.8]} 29... Kxe8 {[%clk 0:00:23]} 30. Qg8+
{[%clk 0:00:12.1]} 30... Nf8 {[%clk 0:00:21.7]} 31. c3 {[%clk 0:00:02.4]} 31...
Bxc3 {[%clk 0:00:20.9]} 32. Kc2 {[%clk 0:00:03.1]} 32... Qb2+ {[%clk 0:00:20.3]}
33. Kd3 {[%clk 0:00:03.4]} 33... Be5 {[%clk 0:00:21.2]} 34. Kc4 {[%clk
0:00:03.8]} 34... Qc3+ {[%clk 0:00:20]} 35. Kb5 {[%clk 0:00:02.8]} 35... c6+
{[%clk 0:00:11.4]} 36. Ka4 {[%clk 0:00:03.7]} 36... b5+ {[%clk 0:00:10.3]} 37.
Ka3 {[%clk 0:00:01]} 37... Qb2+ {[%clk 0:00:11.2]} 0-1

[Event "Early-Titled-Tuesday-Blitz-January-30-2024"]
[Site "Chess.com"]
[Date "2024.01.30"]
[Round "4"]
[White "Gentlejimmy7"]
[Black "SirGerhard"]
[Result "0-1"]
[WhiteElo "2562"]
[BlackElo "2770"]
[TimeControl "180+1"]
[EndTime "8:41:37 PST"]
[Termination "SirGerhard won by resignation"]

1. c4 {[%clk 0:03:00.9]} 1... e5 {[%clk 0:02:58.8]} 2. Nc3 {[%clk 0:02:58.9]}
2... Bb4 {[%clk 0:02:59]} 3. Nd5 {[%clk 0:02:57.5]} 3... a5 {[%clk 0:02:59.3]}
4. a3 {[%clk 0:02:55.4]} 4... Bc5 {[%clk 0:02:57.6]} 5. e3 {[%clk 0:02:54.9]}
5... c6 {[%clk 0:02:55.3]} 6. Nc3 {[%clk 0:02:55]} 6... Ba7 {[%clk 0:02:48.2]}
7. Nf3 {[%clk 0:02:54.4]} 7... d6 {[%clk 0:02:47.7]} 8. d4 {[%clk 0:02:51.3]}
8... exd4 {[%clk 0:02:48]} 9. Nxd4 {[%clk 0:02:47.9]} 9... Nf6 {[%clk
0:02:46.8]} 10. g3 {[%clk 0:02:48]} 10... O-O {[%clk 0:02:37.8]} 11. Bg2 {[%clk
0:02:48.6]} 11... Nbd7 {[%clk 0:02:36.6]} 12. O-O {[%clk 0:02:48.1]} 12... Ne5
{[%clk 0:02:36.9]} 13. b3 {[%clk 0:02:39]} 13... Bg4 {[%clk 0:02:36.6]} 14. f3
{[%clk 0:02:32.8]} 14... Bd7 {[%clk 0:02:36.7]} 15. Bb2 {[%clk 0:02:32.7]} 15...
Re8 {[%clk 0:02:31.7]} 16. Kh1 {[%clk 0:02:32.6]} 16... Qb6 {[%clk 0:02:27.5]}
17. Na4 {[%clk 0:02:27.1]} 17... Qc7 {[%clk 0:02:27.2]} 18. Rc1 {[%clk
0:02:14.8]} 18... Rad8 {[%clk 0:02:24.4]} 19. h3 {[%clk 0:02:05.5]} 19... d5
{[%clk 0:02:02.9]} 20. f4 {[%clk 0:02:03.8]} 20... Ng6 {[%clk 0:01:59.3]} 21.
cxd5 {[%clk 0:01:43]} 21... Rxe3 {[%clk 0:01:33]} 22. dxc6 {[%clk 0:01:43.3]}
22... bxc6 {[%clk 0:01:27.8]} 23. Rf3 {[%clk 0:01:08.9]} 23... Rde8 {[%clk
0:01:20]} 24. Nc5 {[%clk 0:00:37.1]} 24... Re1+ {[%clk 0:01:14.5]} 25. Qxe1
{[%clk 0:00:36.3]} 25... Rxe1+ {[%clk 0:01:13.3]} 26. Rxe1 {[%clk 0:00:33.1]}
26... Bxc5 {[%clk 0:01:13.6]} 27. Rc1 {[%clk 0:00:24.5]} 27... Bf8 {[%clk
0:01:04.4]} 28. Rfc3 {[%clk 0:00:20.5]} 28... c5 {[%clk 0:01:03.9]} 29. b4
{[%clk 0:00:19.1]} 29... axb4 {[%clk 0:00:58.5]} 30. axb4 {[%clk 0:00:20]} 30...
Qb6 {[%clk 0:00:56.8]} 31. bxc5 {[%clk 0:00:20.1]} 31... Qxb2 {[%clk 0:00:56.7]}
32. c6 {[%clk 0:00:21]} 32... Bc8 {[%clk 0:00:55.4]} 33. c7 {[%clk 0:00:21.5]}
33... h5 {[%clk 0:00:40.4]} 34. Nc6 {[%clk 0:00:16.7]} 34... Ne8 {[%clk
0:00:19.8]} 35. Na7 {[%clk 0:00:16.2]} 35... Nxc7 {[%clk 0:00:20.2]} 36. Nxc8
{[%clk 0:00:15.4]} 36... Ne6 {[%clk 0:00:19.5]} 37. R3c2 {[%clk 0:00:13]} 37...
Qb5 {[%clk 0:00:17.2]} 38. h4 {[%clk 0:00:13.3]} 38... Nexf4 {[%clk 0:00:13.3]}
39. gxf4 {[%clk 0:00:12.8]} 39... Nxf4 {[%clk 0:00:14.2]} 40. Bf3 {[%clk
0:00:10.5]} 40... Qf5 {[%clk 0:00:14.1]} 41. Rc3 {[%clk 0:00:08.9]} 41... Qh3+
{[%clk 0:00:13.2]} 42. Kg1 {[%clk 0:00:09.5]} 42... Bc5+ {[%clk 0:00:11.5]} 43.
Rxc5 {[%clk 0:00:09.1]} 43... Qxf3 {[%clk 0:00:11.9]} 44. R5c2 {[%clk
0:00:09.8]} 44... Ne2+ {[%clk 0:00:11.8]} 45. Rxe2 {[%clk 0:00:10.3]} 45... Qxe2
{[%clk 0:00:12.3]} 46. Rc6 {[%clk 0:00:10.6]} 46... Qe1+ {[%clk 0:00:09.9]} 47.
Kg2 {[%clk 0:00:11.1]} 47... Qe4+ {[%clk 0:00:10]} 48. Kg3 {[%clk 0:00:11.4]}
48... f6 {[%clk 0:00:09.9]} 49. Ne7+ {[%clk 0:00:07.4]} 49... Qxe7 {[%clk
0:00:08.8]} 50. Rc4 {[%clk 0:00:05.5]} 50... Qe3+ {[%clk 0:00:08.6]} 51. Kg2
{[%clk 0:00:04.3]} 51... Qe2+ {[%clk 0:00:09.1]} 52. Kg3 {[%clk 0:00:04.8]}
52... Qxc4 {[%clk 0:00:09.9]} 0-1

[Event "Early-Titled-Tuesday-Blitz-January-30-2024"]
[Site "Chess.com"]
[Date "2024.01.30"]
[Round "4"]
[White "CaspiIsrael"]
[Black "Herzog2012"]
[Result "1-0"]
[WhiteElo "2759"]
[BlackElo "2557"]
[TimeControl "180+1"]
[EndTime "8:41:37 PST"]
[Termination "CaspiIsrael won on time"]

1. d4 {[%clk 0:03:00.9]} 1... Nf6 {[%clk 0:02:59.5]} 2. c4 {[%clk 0:02:59.7]}
2... e6 {[%clk 0:02:59.5]} 3. Nf3 {[%clk 0:02:59.6]} 3... b6 {[%clk 0:02:54.3]}
4. g3 {[%clk 0:02:57.4]} 4... Ba6 {[%clk 0:02:53.3]} 5. Qc2 {[%clk 0:02:56.5]}
5... Bb7 {[%clk 0:02:46.1]} 6. Bg2 {[%clk 0:02:54.6]} 6... c5 {[%clk 0:02:46.6]}
7. d5 {[%clk 0:02:49.4]} 7... exd5 {[%clk 0:02:45.9]} 8. cxd5 {[%clk 0:02:50.3]}
8... Nxd5 {[%clk 0:02:46.2]} 9. O-O {[%clk 0:02:44.8]} 9... Be7 {[%clk
0:02:45.9]} 10. Rd1 {[%clk 0:02:44.7]} 10... Nc6 {[%clk 0:02:45.1]} 11. Qf5
{[%clk 0:02:43.5]} 11... Nf6 {[%clk 0:02:42.6]} 12. Nc3 {[%clk 0:02:41.9]} 12...
O-O {[%clk 0:02:38.4]} 13. Bg5 {[%clk 0:02:41.4]} 13... g6 {[%clk 0:01:47.4]}
14. Qh3 {[%clk 0:02:36.8]} 14... d5 {[%clk 0:01:44.4]} 15. Bxf6 {[%clk
0:02:36.2]} 15... Bxf6 {[%clk 0:01:43.7]} 16. Nxd5 {[%clk 0:02:36.1]} 16... Bxb2
{[%clk 0:01:16.5]} 17. Rab1 {[%clk 0:02:36]} 17... Nd4 {[%clk 0:01:16.1]} 18.
Nf4 {[%clk 0:02:16.2]} 18... Bxf3 {[%clk 0:00:31.9]} 19. exf3 {[%clk 0:01:53]}
19... Bc3 {[%clk 0:00:29.3]} 20. Rd3 {[%clk 0:01:50.1]} 20... Ba5 {[%clk
0:00:23.8]} 21. Rbd1 {[%clk 0:01:49.3]} 21... Qd6 {[%clk 0:00:22]} 22. Qh6
{[%clk 0:01:44.3]} 22... Rfe8 {[%clk 0:00:11]} 23. Nh5 {[%clk 0:01:40]} 23...
Qe5 {[%clk 0:00:11]} 24. Nf4 {[%clk 0:01:34.5]} 24... Rad8 {[%clk 0:00:11.3]}
25. h4 {[%clk 0:01:33.4]} 25... b5 {[%clk 0:00:11]} 26. Kh2 {[%clk 0:01:32.1]}
26... Nf5 {[%clk 0:00:09.3]} 27. Qg5 {[%clk 0:01:26.9]} 27... Rxd3 {[%clk
0:00:03.7]} 28. Rxd3 {[%clk 0:01:25.5]} 28... h6 {[%clk 0:00:03.3]} 29. Qg4
{[%clk 0:01:23.9]} 29... Bc7 {[%clk 0:00:02.6]} 30. Rd5 {[%clk 0:01:18.5]} 30...
Qf6 {[%clk 0:00:02.7]} 31. Rxc5 {[%clk 0:01:16.2]} 31... Bxf4 {[%clk 0:00:02.5]}
32. Qxf4 {[%clk 0:01:15.1]} 32... Qd4 {[%clk 0:00:02.8]} 33. Rxf5 {[%clk
0:01:14.2]} 33... Qxf4 {[%clk 0:00:01.5]} 34. Rxf4 {[%clk 0:01:14.3]} 34... Re2
{[%clk 0:00:02.4]} 35. a4 {[%clk 0:01:11.8]} 35... a6 {[%clk 0:00:01.6]} 36.
axb5 {[%clk 0:01:11.2]} 36... axb5 {[%clk 0:00:02.5]} 37. Rb4 {[%clk 0:01:11.4]}
37... Rxf2 {[%clk 0:00:03.2]} 38. Rxb5 {[%clk 0:01:11.3]} 38... h5 {[%clk
0:00:02.8]} 39. Kg1 {[%clk 0:01:08.1]} 39... Ra2 {[%clk 0:00:03.3]} 40. Bf1
{[%clk 0:01:06.4]} 40... Kg7 {[%clk 0:00:03]} 41. Re5 {[%clk 0:01:06.3]} 41...
f6 {[%clk 0:00:02.9]} 42. Re7+ {[%clk 0:01:06.2]} 42... Kh6 {[%clk 0:00:03.5]}
43. Rf7 {[%clk 0:01:03.6]} 43... f5 {[%clk 0:00:01.8]} 44. f4 {[%clk 0:01:00.7]}
44... Ra3 {[%clk 0:00:02.1]} 45. Kf2 {[%clk 0:00:59.6]} 45... Ra2+ {[%clk
0:00:02.4]} 46. Be2 {[%clk 0:01:00]} 46... Ra3 {[%clk 0:00:02.6]} 47. Re7 {[%clk
0:00:59.2]} 47... Ra4 {[%clk 0:00:02.2]} 48. Re3 {[%clk 0:00:59.6]} 48... Kg7
{[%clk 0:00:02]} 49. Ke1 {[%clk 0:00:59.5]} 49... Rb4 {[%clk 0:00:02.3]} 50. Kd2
{[%clk 0:01:00]} 50... Kf6 {[%clk 0:00:02.7]} 51. Kc3 {[%clk 0:01:00.1]} 51...
Rb1 {[%clk 0:00:02.8]} 52. Bc4 {[%clk 0:01:00.2]} 52... Rc1+ {[%clk 0:00:02.7]}
53. Kd4 {[%clk 0:01:00.6]} 53... Rd1+ {[%clk 0:00:03.1]} 54. Kc5 {[%clk
0:01:00.9]} 54... Rg1 {[%clk 0:00:02.9]} 55. Bd5 {[%clk 0:01:00.8]} 55... Rc1+
{[%clk 0:00:02.3]} 56. Kd6 {[%clk 0:01:01.3]} 56... Ra1 {[%clk 0:00:02.7]} 57.
Re6+ {[%clk 0:00:59.2]} 57... Kg7 {[%clk 0:00:02.9]} 58. Re7+ {[%clk 0:00:59]}
58... Kh8 {[%clk 0:00:02.6]} 59. Bf7 {[%clk 0:00:53]} 59... Kg7 {[%clk
0:00:02.1]} 60. Be8+ {[%clk 0:00:51.8]} 60... Kh6 {[%clk 0:00:01.2]} 61. Re6
{[%clk 0:00:50.7]} 61... Ra6+ {[%clk 0:00:01.8]} 62. Ke5 {[%clk 0:00:46.6]}
62... Ra5+ {[%clk 0:00:02.1]} 63. Kf6 {[%clk 0:00:44.9]} 1-0